Cogmind - Beta 10.2 @@@ ROGUE MODE // 2021.10.23 @ 17:04:40 Player: Burgers_Lettuce Result: Self-destructed Performance ------------- Evolutions (0) 0 Regions Visited (4) 800 Robots Destroyed (2) 10 Value Destroyed (81) 81 Prototype IDs (3) 60 Alien Tech Used (0) 0 Bonus (300) 300 TOTAL SCORE: 1251 Bonus ------- Aligned with FarCom 300 Cogmind --------- Core Integrity 157/250 Matter 214/300 Energy 125/125 System Corruption 0% Temperature Cool (0) Movement Rolling (80) Location -9/Mines Parts ------- > --- POWER (1) -------- Light Ion Engine > --- PROPULSION (2) --- Light Treads Wheel > --- UTILITY (2) ------ Small Storage Unit > --- WEAPON (2) ------- (None) > --- INVENTORY (6) ---- Light Ion Engine Light Treads Compact Wheel Superbattery (2000) Assault Rifle Light Assault Rifle Peak State ------------ > --- POWER ------------ Light Ion Engine > --- PROPULSION ------- Light Treads Wheel > --- UTILITY ---------- Lightpack 2.0 > --- WEAPON ----------- Assault Rifle Light Assault Rifle > --- INVENTORY -------- Light Ion Engine Light Treads Compact Wheel Assault Rifle [Rating: 25] Favorites ----------- Power Light Ion Engine Engine Light Ion Engine Propulsion Wheel Treads Light Treads Wheel Wheel Utility Small Storage Unit Device Skeleton Box Storage Small Storage Unit Weapon Assault Rifle Ballistic Gun Assault Rifle Launcher Rocket Launcher Build | -11 -10 -10 -10 -9 ------- Run | Scr Mat Min Exi Min Slots Evolved . | . . . . . Power . | . . . . . Propulsion . | . . . . . Utility . | . . . . . Weapon . | . . . . . Parts Attached 14 | 7 . . 6 1 Power 1 | 1 . . . . Engine 1 | 1 . . . . Core . | . . . . . Reactor . | . . . . . Propulsion 3 | 3 . . . . Treads 1 | 1 . . . . Leg . | . . . . . Wheel 2 | 2 . . . . Hover . | . . . . . Flight . | . . . . . Utility 7 | 1 . . 6 . Device 1 | . . . 1 . Storage 6 | 1 . . 5 . Processor . | . . . . . Hackware . | . . . . . Protection . | . . . . . Artifact . | . . . . . Weapon 3 | 2 . . . 1 Energy Gun . | . . . . . Energy Cannon . | . . . . . Ballistic Gun 2 | 2 . . . . Ballistic Cannon . | . . . . . Launcher 1 | . . . . 1 Special Weapon . | . . . . . Impact Weapon . | . . . . . Slashing Weapon . | . . . . . Piercing Weapon . | . . . . . Special Melee Weapon . | . . . . . Unidentified Prototypes 3 | . . . 3 . Parts Lost 2 | . . . . 2 Power . | . . . . . Propulsion . | . . . . . Utility . | . . . . . Weapon 2 | . . . . 2 Highest Loss Streak 2 | . . . . 2 Average Slot Usage (%) 84 | . 85 85 87 71 Engine 14 | . 14 14 14 14 Treads 14 | . 14 14 14 14 Wheel 14 | . 14 14 14 14 Storage 14 | . 14 14 16 14 Ballistic Gun 25 | . 28 28 28 12 Naked Turns . | . . . . . Heaviest Build 14 | 10 10 10 14 10 Greatest Support 16 | 16 10 10 10 10 Greatest Overweight (x) 1 | . . . 1 . Average Overweight (x) . | . . . . . Largest Inventory Capacity 24 | 6 6 6 24 6 Average Capacity 5 | 5 6 6 6 6 Most Carried 6 | 4 4 4 5 6 Average Carried 4 | 2 4 4 4 5 Final Capacity 6 | 6 6 6 6 6 Final Carried 6 | 4 4 4 5 6 Class Distribution -------------------- 100% | Mutant Dominant Class ---------------- Mutant | -10/Materials Mutant | -10/Mines Mutant | -10/Exiles Mutant | -9/Mines Resources | -11 -10 -10 -10 -9 ----------- Run | Scr Mat Min Exi Min Matter Collected 298 | 255 . 43 . . Remotely . | . . . . . Salvage Created 104 | . . 74 . 30 Parts 1 | . . 1 . . Haulers Intercepted . | . . . . . Recyclers Shooed . | . . . . . Parts Field Recycled . | . . . . . Retrieved Matter . | . . . . . Parts Self-Destructed . | . . . . . Prevented . | . . . . . Kills | -11 -10 -10 -10 -9 ------- Run | Scr Mat Min Exi Min Combat Hostiles Destroyed 7 | . . 2 . 5 Guns 3 | . . 2 . 1 AOE 4 | . . . . 4 Classes Destroyed 2 | . . 1 . 1 Grunt 2 | . . 2 . . Assembled 5 | . . . . 5 Best Kill Streak 5 | . . 2 . 5 Combat Bots Only 5 | . . 2 . 5 Max Kills in Single Turn 3 | . . 1 . 3 Gunslinging . | . . . . . Exploded 3 | . . . . 3 Melee . | . . . . . Uniques/NPCs Destroyed . | . . . . . Combat | -11 -10 -10 -10 -9 -------- Run | Scr Mat Min Exi Min Damage Taken 392 | . 16 135 . 241 Core 93 | . . 25 . 68 Absorbed by Shields . | . . . . . Core Remaining (%) 100 | 100 . . . . Volleys Fired 9 | . . 7 . 2 Largest 2 | . . 2 . 2 Hottest 53 | . . 40 . 53 Shots Fired 18 | . . 14 . 4 Gun 16 | . . 14 . 2 Cannon . | . . . . . Launcher 2 | . . . . 2 Special . | . . . . . Kinetic 16 | . . 14 . 2 Thermal . | . . . . . Explosive 2 | . . . . 2 Electromagnetic . | . . . . . Robot Hit Streak 9 | . . 9 . 3 Robot Miss Streak 1 | . . 1 . . Penetration Max . | . . . . . Secondary Targets . | . . . . . Shots Hit Robots 14 | . . 11 . 3 Core Hits 16 | . . 6 . 10 Critical Hits . | . . . . . Critical Kills . | . . . . . Critical Parts Destroyed . | . . . . . Melee Attacks . | . . . . . Impact . | . . . . . Slashing . | . . . . . Piercing . | . . . . . Sneak Attacks . | . . . . . Combat Hostiles . | . . . . . Follow-up Attacks . | . . . . . Damage Inflicted 357 | . . 138 . 219 Guns 138 | . . 112 . 26 Cannons . | . . . . . Explosions 187 | . . . . 187 Melee . | . . . . . Ramming 32 | . . 26 . 6 Kinetic 138 | . . 112 . 26 Thermal . | . . . . . Explosive 187 | . . . . 187 Electromagnetic . | . . . . . Impact . | . . . . . Slashing . | . . . . . Piercing . | . . . . . Highest Corruption . | . . . . . Average Corruption . | . . . . . Corruption Purged . | . . . . . Overload Shots . | . . . . . Overflow Damage . | . . . . . Projectiles . | . . . . . Explosions . | . . . . . Melee . | . . . . . Knockbacks . | . . . . . Impact . | . . . . . Kinetic . | . . . . . Secondary . | . . . . . Self-Inflicted Damage 72 | . . 13 . 59 Shots 2 | . . . . 2 Rammed 3 | . . 2 . 1 Targets Rammed 3 | . . 2 . 1 Kicked . | . . . . . Crushed . | . . . . . Highest Temperature 22 | . . 18 . 22 Average Temperature 9 | . . 7 . 11 Received Heat Transfer 112 | . . 72 . 40 Siege Activations . | . . . . . Robots Corrupted . | . . . . . Combat Hostiles . | . . . . . Parts Fried . | . . . . . Impact Corruptions . | . . . . . Robots Melted . | . . . . . Combat Hostiles . | . . . . . Parts Melted . | . . . . . Heat Transferred . | . . . . . Parts Sabotaged . | . . . . . Parts Stolen . | . . . . . Parts Stripped . | . . . . . Power Chain Reactions . | . . . . . Missiles Intercepted . | . . . . . Alert | -11 -10 -10 -10 -9 ------- Run | Scr Mat Min Exi Min Peak Influence 57 | . 20 57 . 9 Initial 7 | . . 7 . . Average 24 | . 15 48 . . Maximum Alert Level . | . . . . . Low Security (%) 100 | 100 100 100 . 100 Level 1 . | . . . . . Level 2 . | . . . . . Level 3 . | . . . . . Level 4 . | . . . . . Level 5 . | . . . . . High Security . | . . . . . Max Security . | . . . . . Squads Dispatched . | . . . . . Investigation . | . . . . . Extermination . | . . . . . Reinforcement . | . . . . . Assault . | . . . . . Garrison . | . . . . . Intercept . | . . . . . Construction Impeded . | . . . . . Haulers Reinforced . | . . . . . Stealth | -11 -10 -10 -10 -9 --------- Run | Scr Mat Min Exi Min Distress Signals 1 | . 1 . . . Communications Jammed . | . . . . . Distress Signals . | . . . . . Times Spotted 20 | . 3 2 . 15 Peak Tracking Total 14 | . 4 2 . 14 Tactical Retreats 2 | . . . . 2 Traps | -11 -10 -10 -10 -9 ------- Run | Scr Mat Min Exi Min Traps Triggered . | . . . . . Indirectly . | . . . . . Trap Hack Attempts . | . . . . . Triggered . | . . . . . Disarmed . | . . . . . Reprogrammed . | . . . . . Reused . | . . . . . Traps Extracted . | . . . . . Installed . | . . . . . Triggered . | . . . . . Exploded 1 | . . . 1 . Machines | -11 -10 -10 -10 -9 ---------- Run | Scr Mat Min Exi Min Machines Disabled . | . . . . . Max in Single Turn . | . . . . . Machines Sabotaged . | . . . . . Garrisons Compromised . | . . . . . Overloaded Fab Kills . | . . . . . Fab Network Shutdowns . | . . . . . Hacking | -11 -10 -10 -10 -9 --------- Run | Scr Mat Min Exi Min Machines Accessed 4 | . 3 . . 1 Terminals 4 | . 3 . . 1 Fabricators . | . . . . . Repair Stations . | . . . . . Recycling Units . | . . . . . Scanalyzers . | . . . . . Garrison Access . | . . . . . Total Hacks 12 | . 8 . . 4 Successful 8 | . 7 . . 1 Failed 4 | . 1 . . 3 Catastrophic 1 | . . . . 1 Database Lockouts . | . . . . . Manual 13 | . 8 . 1 4 Terminals 12 | . 8 . . 4 Fabricators . | . . . . . Repair Stations . | . . . . . Recycling Units . | . . . . . Scanalyzers . | . . . . . Garrison Access . | . . . . . Terminal Hacks 2 | . 1 . . 1 Level Access Points 1 | . . . . 1 Terminal Index 1 | . 1 . . . Fabricator Hacks . | . . . . . Repair Station Hacks . | . . . . . Recycling Unit Hacks . | . . . . . Scanalyzer . | . . . . . Garrison Access Hacks . | . . . . . Unauthorized Hacks 6 | . 6 . . . Terminals 6 | . 6 . . . Assimilate 1 | . 1 . . . Botnet 3 | . 3 . . . Operators 2 | . 2 . . . Fabricators . | . . . . . Repair Stations . | . . . . . Recycling Units . | . . . . . Scanalyzers . | . . . . . Garrison Access . | . . . . . Data Cores Recovered . | . . . . . Used . | . . . . . Hacking Detections 2 | . 1 . . 1 Full Trace Events . | . . . . . Feedback Events . | . . . . . Feedback Blocked . | . . . . . Robot Schematics Acquired . | . . . . . Robots Built . | . . . . . Matter . | . . . . . Time . | . . . . . Total Robot Build Rating . | . . . . . Part Schematics Acquired . | . . . . . Parts Built . | . . . . . Matter . | . . . . . Time . | . . . . . Total Part Build Rating . | . . . . . Parts Repaired . | . . . . . Time . | . . . . . Parts Recycled . | . . . . . Recycled Matter . | . . . . . Retrieved Matter . | . . . . . Retrieved Components . | . . . . . Parts Scanalyzed . | . . . . . Part Schematics Acquired . | . . . . . Parts Damaged . | . . . . . Bothacking | -11 -10 -10 -10 -9 ------------ Run | Scr Mat Min Exi Min Used RIF Installer . | . . . . . Robots Hacked . | . . . . . Non-combat . | . . . . . Combat . | . . . . . Robot Hacks Applied . | . . . . . Relay Couplers Released . | . . . . . Robots Rewired . | . . . . . Allies Hacked . | . . . . . Hacks Repelled . | . . . . . Allies | -11 -10 -10 -10 -9 -------- Run | Scr Mat Min Exi Min Total Allies . | . . . . . Largest Group . | . . . . . Highest-Rated Group . | . . . . . Highest-Rated Ally . | . . . . . Total Orders . | . . . . . Ally Attacks . | . . . . . Total Damage . | . . . . . Kills . | . . . . . Allies Corrupted . | . . . . . Allies Melted . | . . . . . Intel | -11 -10 -10 -10 -9 ------- Run | Scr Mat Min Exi Min Robot Analysis Total . | . . . . . Derelict Logs Recovered 1 | . . 1 . . Drone Launches . | . . . . . Drone Recoveries . | . . . . . Exploration | -11 -10 -10 -10 -9 ------------- Run | Scr Mat Min Exi Min Turns Passed 569 | 49 99 167 188 66 Spaces Moved 589 | 45 94 170 216 64 Core 5 | 5 . . . . Treads . | . . . . . Legs . | . . . . . Wheels 584 | 40 94 170 216 64 Hover . | . . . . . Flight . | . . . . . Fastest Speed 50 | 50 80 80 80 80 Average Speed 80 | 78 80 80 81 80 Slowest Speed 100 | 100 80 80 90 80 Overloaded Moves . | . . . . . Propulsion Burnouts . | . . . . . Robots Hopped . | . . . . . Cave-ins Triggered . | . . . . . Exploration Rate (%) 27 | 2 28 30 60 19 Regions Visited 4 Branch Regions 3 Pre-discovered Areas . | . . . . . Known Exits Taken . | . . . . . Unknown Exits Taken 4 | 1 1 1 1 . Scrap Searched 1 | . . . . 1 Spaces Dug . | . . . . . Terrain Destroyed 22 | . . . . 22 Melee . | . . . . . Projectile . | . . . . . AOE 22 | . . . . 22 Terrain Rammed . | . . . . . Walls Destroyed . | . . . . . Machines Disabled . | . . . . . Actions | -11 -10 -10 -10 -9 --------- Run | Scr Mat Min Exi Min Total 661 | 55 117 188 227 74 Wait 39 | . 24 10 . 5 Move 585 | 44 93 169 215 64 Hop . | . . . . . Pick Up 4 | 3 . . . 1 Fast Attach 13 | 7 . . 6 . Attach . | . . . . . Detach 2 | 1 . . 1 . Swap 1 | . . . . 1 Drop 5 | . . . 5 . Fire 9 | . . 7 . 2 Melee . | . . . . . Ram 3 | . . 2 . 1 Kick . | . . . . . Crush . | . . . . . Escape Stasis . | . . . . . Rewire . | . . . . . Trap . | . . . . . Miscellaneous . | . . . . . Route ------- -11/Scrapyard -10/Materials -10/Mines (discovered 3 exits: [*Mat x2] / *Exi) -10/Exiles -9/Mines (discovered 2 exits: Mat x2) History --------- Turn | Location | Event 36 | -11/Scrapyard | Discovered new exit (range 15) 50 | -11/Scrapyard | Entered Materials 117 | -10/Materials | Discovered new exit (range 12) 149 | -10/Materials | Entered Mines 159 | -10/Mines | Learned Materials emergency access door positions 212 | -10/Mines | Discovered new exit (range 11) 304 | -10/Mines | Discovered new exit (range 7) 313 | -10/Mines | Deemed a non-threat by the Exiles lab entrance 313 | -10/Mines | Discovered new exit (range 5) 316 | -10/Mines | Entered Exiles 317 | -10/Exiles | Build established: Mutant 337 | -10/Exiles | Met 8R-AWN 349 | -10/Exiles | Met EX-HEX 373 | -10/Exiles | Met EX-BIN 384 | -10/Exiles | Aligned with FarCom system 385 | -10/Exiles | Given EX-Vault access code 403 | -10/Exiles | Opened EX-Vault 407 | -10/Exiles | Found Prototype Storage 407 | -10/Exiles | Identified Lightpack 2.0 409 | -10/Exiles | Found Prototype Storage 409 | -10/Exiles | Identified Superbattery 413 | -10/Exiles | Found Prototype Device 413 | -10/Exiles | Identified Skeleton Box 444 | -10/Exiles | Warned to stay clear of 0b10 Research branches 450 | -10/Exiles | Exiles lab attacked by MAIN.C 498 | -10/Exiles | Discovered new exit (range 10) 504 | -10/Exiles | Left Exiles lab with Superbattery 504 | -10/Exiles | Entered Mines 511 | -9/Mines | Received a Rocket Launcher from a helpful Derelict 520 | -9/Mines | Assembled infested the area 569 | -9/Mines | Identified exit to Materials 570 | -9/Mines | Self-destructed Last Messages --------------- 00530_ as-10218 destroyed. 00530_ as-75485 destroyed. 00532_ Rocket Launcher destroyed. 00533_ The unstable cave ceiling collapses. 00547_ Slammed into K-01 Serf. 00547_ Assault Rifle destroyed. 00552_ as-83924 sneak attacks. 00553_ Searching scrap... 00553_ Found Weapon Shielding. 00553_ Found 31 Matter. 00556_ T-07 Excavator Wheel severed. 00564_ K-01 Serf destroyed. 00569_ Connecting with Terminal... 00569_ Current location identified: Mines >>Access(Main) Found 2 level access points to Materials: (42,60) (16,29) Map updated. 00570_ K-01 Serf destroyed. Map ----- +----------------------------------------------------+ | ????????????????????# #???????????? | | ????????????????????# #???????????? | | ???????????????## ### #####???????? | | ???????????????# ######??? | | ???????????????# #### = ##?? | | ????????????????????#### ! #?? | | ???????????????????????# % #?? | | ???????????????????????## #?? | | ????????????????????????### ##?? | | ??????????????????????????## #?? | | ????????????????####???????### #?? | | ????????????????# ###### #?? | | ????????????????# #?? | | ????????????????????""" #?? | | ????????????????????""" ##### ###?? | | ????????????????????????????# #???? | | ????????????????????????????#%#???? | | ?????????????????????????#### ##??? | | ??